[Event "Baku Open 2024"]
[Site "Baku"]
[Date "2024.07.05"]
[Round "7.10"]
[White "Yeletsky, Ivan"]
[Black "Kamalidenova, Meruert"]
[Result "1/2-1/2"]
[ECO "E92"]
[WhiteElo "2498"]
[BlackElo "2360"]
[Annotator "TA"]
[PlyCount "93"]
[EventDate "2024.06.29"]
[EventType "swiss"]
[EventCountry "AZE"]
[SourceTitle "playchess.com"]
[Source "ChessBase"]
[SourceQuality "1"]
[TimeControl "5400+30"]

{[%evp 39,93,21,68,50,117,91,107,138,164,132,175,128,141,155,129,0,0,0,0,0,0,0,0,0,213,193,155,202,172,197,181,76,74,31,43,71,396,0,0,0,471,0,0,0,0,0,0,0,0,0,0,0,0,0,0,0]} 1. d4 {[%emt 0:00:27]} Nf6 {[%emt 0:00:05]} 2. c4 {[%emt 0:00:15]} g6 {[%emt 0:00:05]} 3. Nc3 {[%emt 0:00:12]} Bg7 {[%emt 0:00:05]} 4. e4 {[%emt 0:00:20]} d6 {[%emt 0:00:05]} 5. h3 {[%emt 0:00:10]} O-O {[%emt 0:00:12]} 6. Be3 {[%emt 0:00:20]} a5 {[%emt 0:03:21]} 7. Nf3 {[%emt 0:02:48]} e5 {[%emt 0:01:09]} 8. d5 {[%emt 0:00:24]} Na6 {[%emt 0:00:16]} 9. Nd2 {[%emt 0:02:14]} Nc5 {[%emt 0:01:32]} 10. g4 {[%emt 0:01:41]} c6 {[%emt 0:01:54]} 11. Be2 {[%emt 0:04:13]} a4 {[%emt 0:01:10] E92: King's Indian: Classical: 6 Be2 e5: 7 dxe5, 7 Be3 and Petrosian System without 7...Nbd7.} 12. g5 {[%emt 0:07:34]} Ne8 {[%emt 0:00:07]} 13. h4 {[%emt 0:00:19]} Bd7 {[%emt 0:00:22]} 14. h5 {[%emt 0:11:29]} Nc7 {[%emt 0:06:51]} 15. a3 {[%emt 0:04:24]} cxd5 {[%emt 0:08:39]} 16. exd5 {[%emt 0:08:57]} N7a6 {[%emt 0:03:01]} 17. Bg4 $146 {[%emt 0:17:29]} ({Predecessor:} 17. Kf1 Bf5 18. Bf3 Qc8 19. Rh4 Bd3+ 20. Kg2 f5 21. gxf6 Bxf6 22. Rg4 Bf5 23. Nde4 Nxe4 24. Nxe4 Bxg4 25. Bxg4 Qxc4 26. Nxd6 {1-0 Cheparinov,I (2670)-Pancevski,F (2490) EU-chT 22nd Batumi 2019 (5.12)}) 17... Bf5 {[%emt 0:18:21]} 18. Bxf5 {[%emt 0:02:03]} gxf5 {[%emt 0:00:02]} 19. Qc2 {[%emt 0:06:15]} e4 {[%emt 0:03:57]} 20. Ke2 {[%emt 0:07:26]} (20. Nxa4 $2 Nxa4 21. Qxa4 f4 (21... Nc5 22. Qc2 $17) 22. Bxf4 Nc5 $17) 20... Qe8 {[%emt 0:08:59]} (20... Re8 $1 $11) 21. Rag1 {[%emt 0:05:05]} Qe5 {[%emt 0:06:57]} ({Black should play} 21... Rc8 $14) 22. Rh4 {[%emt 0:02:16]} (22. Nxa4 $2 Nxa4 23. Qxa4 f4 $19) 22... Nd3 {[%emt 0:05:01]} 23. h6 {[%emt 0:10:40]} (23. Qxa4 $2 Nxb2 24. Qb5 Qxc3 $19) 23... Bh8 {[%emt 0:01:05] [#]} 24. Ncxe4 $1 {[%emt 0:00:17]} (24. Qxa4 $2 Nxb2 25. Qc2 Qxc3 $19) (24. Nxa4 f4 $11) 24... fxe4 {[%emt 0:02:19]} 25. Rxe4 {[%emt 0:00:37]} Ndb4 {[%emt 0:03:23]} (25... Qxb2 $2 26. Qxd3 Qc3 27. Rb1 $18) (25... Qh2 $2 26. Nf3 Qh5 27. Qxd3 $18) 26. axb4 {[%emt 0:01:06]} Nxb4 {[%emt 0:00:06] [#]} 27. Rxe5 {[%emt 0:04:24]} (27. Qc3 $1 $16 Qh2 28. Bd4 (28. Qxb4 Qxg1 29. Re7 Qg4+ 30. f3 Qh3 $11) 28... Qxg1 29. Bxh8) 27... Nxc2 $11 {[%emt 0:00:06]} 28. Re7 {[%emt 0:00:06]} Bxb2 {[%emt 0:00:44]} 29. Rxb7 {[%emt 0:00:56]} a3 {[%emt 0:01:33]} 30. Ne4 {[%emt 0:00:30]} Nxe3 {[%emt 0:06:18]} 31. fxe3 {[%emt 0:00:30]} Be5 $2 {[%emt 0:00:06]} (31... Rab8 $1 $11 {and Black is okay.} 32. Ra7 (32. Nxd6 Be5 $11) 32... Ra8) 32. Nf6+ $18 {[%emt 0:00:14]} Kh8 {[%emt 0:00:36]} 33. Nd7 {[%emt 0:00:10]} Rfe8 {[%emt 0:01:44]} 34. Nxe5 {[%emt 0:00:46]} Rxe5 {[%emt 0:00:02]} 35. Rxf7 {[%emt 0:00:49]} (35. Rd7 $18 {and White stays clearly on top.}) 35... a2 $16 {[%emt 0:00:27]} 36. Kd3 {[%emt 0:00:32]} Rxg5 $1 {[%emt 0:00:53]} 37. Ra1 {[%emt 0:00:09]} Kg8 $2 {[%emt 0:01:25][%mdl 8192]} (37... Rg2 $16) 38. Rb7 $2 {[%emt 0:00:49]} ({Only move:} 38. Rf2 $18) 38... Ra3+ $11 {[%emt 0:00:56]} 39. Kd4 {[%emt 0:00:29]} Kf8 $2 {[%emt 0:01:11][%mdl 8192]} (39... Rg4+ $11 40. e4 Rgg3 41. Rb8+ Kf7 42. Rf1+ (42. Rb7+ Ke8 43. Rb8+ Kd7 44. Rb7+ Kc8) 42... Ke7 (42... Kg6 43. Rg8+ Kxh6 44. Rh1+ Rh3 45. Rxh3+ Rxh3 46. Ra8 $18) 43. Rb7+ Ke8 44. Rb8+ Ke7 45. Rb7+ Ke8 46. Rb8+ Ke7) 40. Rf1+ $2 {[%emt 0:00:30]} (40. Rxh7 Rg4+ 41. e4 Rgg3 42. Rf1+ (42. Rh8+ Ke7 43. Rh7+ Kd8 44. Rh8+ Kd7 45. Rh7+ Kc8 46. Rh8+ Kb7 47. Rh7+ Ka6) 42... Kg8 43. Rg7+ Rxg7 44. hxg7 a1=B+ 45. Rxa1 Rxa1 $19) (40. Rb2 $18) 40... Ke8 $11 {[%emt 0:00:16]} 41. Rb8+ {[%emt 0:00:12]} (41. Rxh7 $2 a1=Q+ (41... a1=B+ 42. Ke4 $15) 42. Rxa1 Rg4+ (42... Rxa1 $2 43. Rh8+ Ke7 44. Rh7+ Kf6 45. Rd7 $19) 43. e4 Rxa1 44. Rh8+ Ke7 45. Rh7+ Kf6 $19) 41... Ke7 {[%emt 0:00:07]} 42. Rb7+ {[%emt 0:00:12]} Ke8 {[%emt 0:00:01]} 43. Rg7 {[%emt 0:00:38]} (43. Rxh7 $2 {perishes.} a1=Q+ (43... a1=B+ 44. Ke4 $15) 44. Rxa1 Rg4+ (44... Rxa1 $2 45. Rh8+ Ke7 46. Rh7+ Kf6 47. Rd7 $19) 45. e4 Rxa1 46. Rh8+ Ke7 47. Rh7+ Kd8 48. Rh8+ Kc7 49. Rh7+ Kb6 $19) 43... Rh5 {[%emt 0:00:12]} 44. Rg8+ {[%emt 0:00:06]} Ke7 {[%emt 0:00:02]} 45. Rg7+ {[%emt 0:00:08]} Ke8 {[%emt 0:00:03]} 46. Rg8+ {[%emt 0:01:39]} Ke7 {[%emt 0:00:04]} 47. Rg7+ {[%emt 0:00:35]} 1/2-1/2

[Event "Baku Open 2024"]
[Site "Baku"]
[Date "2024.07.05"]
[Round "7.11"]
[White "Novozhilov, Semen"]
[Black "Assaubayeva, Bibisara"]
[Result "0-1"]
[ECO "E73"]
[WhiteElo "2288"]
[BlackElo "2472"]
[Annotator "TA"]
[PlyCount "76"]
[EventDate "2024.06.29"]
[EventType "swiss"]
[EventCountry "AZE"]
[SourceTitle "playchess.com"]
[Source "ChessBase"]
[SourceQuality "1"]
[TimeControl "5400+30"]

{[%evp 10,76,44,43,45,0,31,7,10,8,26,23,22,-80,-16,-72,-39,-109,-66,-84,-56,-61,-60,-69,-62,-53,0,0,0,0,9,0,14,14,27,16,19,17,70,76,97,95,195,182,171,77,85,85,77,77,77,0,0,10,8,0,0,0,0,0,0,0,0,-70,-81,-330,-345,-522,-512]} 1. d4 {[%emt 0:00:04]} Nf6 {[%emt 0:00:19]} 2. c4 {[%emt 0:00:05]} g6 {[%emt 0:00:09]} 3. Nc3 {[%emt 0:00:06]} Bg7 {[%emt 0:00:12]} 4. e4 {[%emt 0:00:07]} d6 {[%emt 0:00:05]} 5. Be2 {[%emt 0:00:04]} O-O {[%emt 0:00:17]} 6. Be3 {[%emt 0:00:06]} a5 {[%emt 0:01:11]} 7. g4 {[%emt 0:06:15]} c5 {[%emt 0:13:57][%cal Of6g4]} 8. d5 {[%emt 0:06:53]} e6 {[%emt 0:00:26] The position is equal.} 9. f3 {[%emt 0:22:46]} a4 {[%emt 0:04:55]} 10. a3 {[%emt 0:04:23]} exd5 {[%emt 0:00:55]} 11. exd5 {[%emt 0:00:21]} (11. cxd5 $11 Bd7 12. Nh3) 11... Re8 {[%emt 0:08:19]} (11... Nbd7 $17 {[%cal Ob7b5] Strongly threatening ...b5!} 12. Bf4 b5 13. Nxb5 Ne5) 12. Qd2 {[%emt 0:02:18]} (12. Bf4 $1 $11) 12... Nbd7 {[%emt 0:00:52][%cal Ob7b5]} 13. Kf1 {[%emt 0:05:20]} (13. Nb5 $15) 13... Ne5 {[%emt 0:02:26]} 14. Bg5 {[%emt 0:04:11]} Qb6 {[%emt 0:06:33]} 15. Rc1 {[%emt 0:02:47] [#]} h6 $1 {[%emt 0:05:41] Black is more active.} 16. Bf4 {[%emt 0:02:33][%cal Of1g2]} Bd7 {[%emt 0:02:12]} 17. h4 {[%emt 0:06:14]} h5 {[%emt 0:02:16]} (17... Qa6 $1 $15 18. Bxe5 Rxe5) 18. g5 $11 {[%emt 0:00:25]} Nh7 {[%emt 0:00:25]} 19. Nh3 {[%emt 0:02:36]} Qb3 {[%emt 0:11:39]} 20. Qc2 {[%emt 0:02:01]} Qxc2 {[%emt 0:07:27]} (20... Nxc4 $2 21. Qxb3 Ne3+ 22. Bxe3 (22. Kf2 axb3 23. Bxe3 Rab8 $18) 22... axb3 23. Bf4 $18) 21. Rxc2 {[%emt 0:00:05]} Bf5 {[%emt 0:00:47]} 22. Rd2 {[%emt 0:00:29]} f6 {[%emt 0:00:24]} 23. gxf6 {[%emt 0:02:01]} Bxh3+ {[%emt 0:04:51]} ({Better is} 23... Bxf6 $11 24. Nf2 Ra6) 24. Rxh3 $14 {[%emt 0:02:43]} Nxf6 {[%emt 0:00:04]} 25. Nb5 {[%emt 0:02:11][%cal Bc3b5,Bb5c7,Bc7e6][%mdl 32]} Ne4 {[%emt 0:03:58]} 26. Rc2 $1 $18 {[%emt 0:05:45][%cal Ob5c7] Threatens to win with Nc7!} (26. fxe4 Rf8 27. Nc7 Rxf4+ 28. Ke1 Ra5 $19) 26... Rf8 {[%emt 0:00:46]} 27. Bxe5 {[%emt 0:00:05]} (27. Bc1 $18) 27... Bxe5 $16 {[%emt 0:00:26]} 28. Kg2 {[%emt 0:00:05] Wards off Ng3} Nf6 {[%emt 0:00:39] [#]} 29. Nc7 $1 {[%emt 0:00:14]} Rab8 {[%emt 0:02:09]} 30. Bd3 {[%emt 0:01:30]} (30. Ne6 $16) 30... Rf7 $36 {[%emt 0:05:22][%cal Bf8f7,Bf7b7,Bb7b2][%mdl 2080] Black is pushing.} 31. Ne6 {[%emt 0:01:26][%cal Of3f4]} b5 $1 {[%emt 0:00:58] Hoping for ...bxc4.} 32. Bxg6 {[%emt 0:02:20]} ({Reject} 32. cxb5 Nxd5 33. Re2 Kh8 $17) 32... Rfb7 {[%emt 0:02:19]} 33. f4 {[%emt 0:10:08]} Bd4 {[%emt 0:00:06]} 34. Rg3 {[%emt 0:01:15] Black must now prevent cxb5.} bxc4 {[%emt 0:01:22]} 35. Rxc4 {[%emt 0:01:21]} Rxb2+ {[%emt 0:01:03]} 36. Kh3 {[%emt 0:00:03]} (36. Kf1 $1 $11) 36... Bf2 $15 {[%emt 0:02:28]} 37. Rd3 {[%emt 0:00:19] [#]} (37. Rf3 $17) 37... Be1 $1 $19 {[%emt 0:02:19]} 38. Rxa4 {[%emt 0:01:19]} (38. Rf3 $142 R8b3 (38... Nxd5 39. Rxa4 Ne7 40. Bxh5 $16) 39. Ng5) 38... Ng4 {[%emt 0:00:29] Never resign too early!   Weighted Error Value: White=0.38/Black=0.18 (very precise) .  Loses game:     	White=1     	---        Mistake:       	White=7     	Black=4      Inaccurate:     	White=1     	Black=4      OK:         	White=11    	Black=10     Best:        	White=2     	Black=2      Strong:       	White=2     	Black=2      Brilliant:      	---       	Black=1} 0-1

[Event "Baku Open 2024"]
[Site "Baku"]
[Date "2024.07.05"]
[Round "7.12"]
[White "Babazada, Khazar"]
[Black "Suleymanli, Suleyman"]
[Result "1-0"]
[ECO "A14"]
[WhiteElo "2468"]
[BlackElo "2262"]
[Annotator "TA"]
[PlyCount "138"]
[EventDate "2024.06.29"]
[EventType "swiss"]
[EventCountry "AZE"]
[SourceTitle "playchess.com"]
[Source "ChessBase"]
[SourceQuality "1"]
[TimeControl "5400+30"]

{[%evp 22,138,56,40,37,39,34,31,36,47,26,25,77,43,42,38,45,-35,-10,-69,-68,-63,-25,-22,-20,-43,-29,-46,-7,-4,-10,-20,0,0,0,-27,151,150,156,140,149,156,141,154,145,145,144,147,154,159,171,143,133,119,122,137,168,128,206,188,190,160,165,156,156,117,157,149,154,151,162,156,231,213,263,262,232,254,248,233,227,208,209,165,432,472,442,444,425,416,5306,3342,5739,5652,4768,4133,5641,5333,8360,5283,29971,29973,29972,29973,29973,29975,29975,29977,29975,29976,29976,29976,29977,29978,29979,29981,29994,29995,29996]} 1. c4 {[%emt 0:02:18]} e6 {[%emt 0:01:18]} 2. Nf3 {[%emt 0:00:44]} Nf6 {[%emt 0:00:17]} 3. g3 {[%emt 0:04:18]} d5 {[%emt 0:00:08]} 4. Bg2 {[%emt 0:00:08]} Be7 {[%emt 0:00:30]} 5. b3 {[%emt 0:00:50]} O-O {[%emt 0:01:34]} 6. Bb2 {[%emt 0:00:11]} b6 {[%emt 0:00:42]} 7. cxd5 {[%emt 0:04:25]} exd5 {[%emt 0:00:44]} 8. O-O {[%emt 0:00:36]} Bb7 {[%emt 0:01:04]} 9. Qc2 {[%emt 0:03:02]} h6 {[%emt 1:28:43]} 10. d4 {[%emt 0:03:52]} Nbd7 {[%emt 0:00:00]} 11. Nc3 {[%emt 0:01:37]} c5 {[%emt 0:00:00]} 12. dxc5 {[%emt 0:02:39]} bxc5 {[%emt 0:00:00]} 13. Nh4 {[%emt 0:00:05]} Rb8 {[%emt 0:00:00]} 14. e3 {[%emt 0:01:51]} d4 {[%emt 0:00:00]} 15. exd4 {[%emt 0:00:17]} cxd4 {[%emt 0:00:00]} 16. Ne2 {[%emt 0:00:22]} Bxg2 {[%emt 0:00:00]} (16... Rc8 $11 {keeps the balance.} 17. Qd3 Bxg2 18. Kxg2 Re8) 17. Nxg2 {[%emt 0:04:46]} Rc8 {[%emt 0:00:00]} 18. Qd1 {[%emt 0:01:55]} Ne5 {[%emt 0:00:00]} 19. Nh4 {[%emt 1:06:04]} (19. Nxd4 $14 Bc5 20. Nf5 Qxd1 21. Raxd1 Nf3+ 22. Kh1) 19... Nfg4 $15 {[%emt 0:00:00]} 20. h3 {[%emt 0:00:00]} ({White should play} 20. Nf5 $11) 20... Bxh4 $15 {[%emt 0:00:00]} 21. hxg4 {[%emt 0:00:00]} Nf3+ {[%emt 0:00:00]} 22. Kg2 {[%emt 0:00:00]} Bf6 {[%emt 0:00:00]} 23. Nf4 {[%emt 0:00:00]} Ng5 {[%emt 0:00:00]} 24. Qd3 {[%emt 0:00:00]} Qd7 {[%emt 0:00:00]} 25. f3 {[%emt 0:00:00]} Rfe8 {[%emt 0:00:00]} 26. Rae1 {[%emt 0:00:00]} g6 {[%emt 0:00:00]} 27. Rxe8+ {[%emt 0:00:00]} Rxe8 {[%emt 0:00:00]} 28. Qc4 {[%emt 0:00:00]} Rc8 $2 {[%emt 0:00:00]} ({Better is} 28... Ne6 $11) 29. Nd5 $1 $16 {[%emt 0:00:00]} Nh7 {[%emt 0:00:00]} 30. Nxf6+ {[%emt 0:00:00]} Nxf6 {[%emt 0:00:00]} 31. Qxd4 {[%emt 0:00:00]} Qxd4 {[%emt 0:00:00]} 32. Bxd4 {[%emt 0:00:00]} Nd5 {[%emt 0:00:00]} 33. Rf2 {[%emt 0:00:00]} a6 {[%emt 0:00:00]} 34. Rd2 {[%emt 0:00:00]} f6 {[%emt 0:00:00]} 35. Bb2 {[%emt 0:08:00]} Rc5 {[%emt 0:00:20]} 36. Ba3 {[%emt 0:00:00]} Rb5 {[%emt 0:00:36]} 37. Kf2 {[%emt 0:00:00]} Kf7 {[%emt 0:00:04]} 38. Rc2 {[%emt 0:00:00]} Rb6 {[%emt 0:03:24]} 39. Rc8 {[%emt 0:00:00]} f5 {[%emt 0:01:33]} (39... Rb5 $16) 40. gxf5 {[%emt 0:00:00]} gxf5 {[%emt 0:00:01]} 41. Bc5 {[%emt 0:00:00]} Rb5 {[%emt 0:01:23]} 42. Bd6 {[%emt 0:00:00]} Rb6 {[%emt 0:01:46]} 43. Ba3 {[%emt 0:00:00]} h5 {[%emt 0:01:05]} 44. Rf8+ {[%emt 0:00:00]} Kg6 {[%emt 0:00:45]} 45. Rd8 {[%emt 0:00:00]} Nc3 {[%emt 0:00:49]} 46. Rd2 $1 {[%emt 0:00:00]} a5 {[%emt 0:02:16]} (46... Kf7 $16 47. Rc2 Rc6) 47. Rc2 $1 $18 {[%emt 0:00:00]} Nd5 {[%emt 0:01:39]} 48. Rc5 {[%emt 0:00:00]} Nb4 {[%emt 0:00:02]} 49. Rxa5 {[%emt 0:00:00]} Nxa2 {[%emt 0:00:02]} 50. Bc5 {[%emt 0:00:00]} Rc6 {[%emt 0:00:01]} 51. b4 $1 {[%emt 0:00:00]} Nc3 {[%emt 0:00:01]} 52. Ke3 {[%emt 0:00:00]} Nd5+ $2 {[%emt 0:03:13]} (52... f4+ 53. gxf4 (53. Kxf4 $2 Re6 54. g4 Ne2#) 53... Nd5+ 54. Kd4 (54. Ke4 Nxb4 55. f5+ Kf7 $16) 54... Nxf4) 53. Kd4 $18 {[%emt 0:00:00]} Nc7 {[%emt 0:00:02]} 54. Kc4 {[%emt 0:00:00]} f4 {[%emt 0:00:01]} 55. gxf4 {[%emt 0:00:00]} (55. b5 Nxb5 56. Kxb5 Re6 $18) 55... Kf5 {[%emt 0:00:04]} (55... Rf6 $142 56. Be3 h4 57. Rg5+ Kf7) 56. b5 $18 {[%emt 0:00:00]} Nxb5 {[%emt 0:00:05]} 57. Kxb5 {[%emt 0:00:00]} (57. Rxb5 Kxf4 58. Kd5 (58. Rb3 h4 $11) 58... Ra6 $16) 57... Re6 {[%emt 0:00:44]} 58. Ra8 {[%emt 0:00:00]} Kxf4 {[%emt 0:00:37]} 59. Rf8+ {[%emt 0:00:00]} Kg3 {[%emt 0:00:34]} 60. Kc4 {[%emt 0:00:00]} h4 {[%emt 0:04:23]} 61. Kd5 {[%emt 0:00:00]} Rh6 {[%emt 0:00:00]} 62. Bd6+ {[%emt 0:00:00]} Kg2 {[%emt 0:00:00]} 63. f4 {[%emt 0:00:00]} ({Weaker is} 63. Bf4 h3 64. Ke4 (64. Bxh6 h2 $11) 64... Ra6 $16 (64... h2 $2 65. Bxh2 Rxh2 66. f4 $18)) 63... Kf3 {[%emt 0:00:00]} 64. f5 {[%emt 0:00:00]} Kg4 {[%emt 0:00:00]} 65. f6 {[%emt 0:00:00]} Kf5 {[%emt 0:00:00]} 66. f7 {[%emt 0:00:00]} Kf6 {[%emt 0:00:00]} 67. Bf4 $1 {[%emt 0:01:36]} ({Inferior is} 67. Be5+ Ke7 $14) 67... Rh7 {[%emt 0:00:23] [#]} 68. Bg5+ $1 {[%emt 0:00:48]} Kg7 {[%emt 0:00:35] [#]} 69. Ke6 $1 {[%emt 0:00:07]} Rh8 {[%emt 0:03:32]} 1-0

[Event "Baku Open 2024"]
[Site "Baku"]
[Date "2024.07.05"]
[Round "7.13"]
[White "Israilov, Agil"]
[Black "Jubin Jimmy"]
[Result "1/2-1/2"]
[ECO "C77"]
[WhiteElo "2141"]
[BlackElo "2452"]
[Annotator "TA"]
[PlyCount "121"]
[EventDate "2024.06.29"]
[EventType "swiss"]
[EventCountry "AZE"]
[SourceTitle "playchess.com"]
[Source "ChessBase"]
[SourceQuality "1"]
[TimeControl "5400+30"]

{[%evp 14,121,0,0,0,0,-3,0,0,-2,0,0,0,0,-14,0,0,-24,-27,-41,-34,-74,-65,-84,-73,-108,-102,-106,-103,-116,-92,-92,-92,-92,-92,-92,-92,-92,-90,-90,-97,-97,-66,-67,-67,-67,-67,-67,-59,-91,0,-67,-41,-60,0,-70,0,-90,-100,-99,-91,-109,-97,-104,-112,-92,-72,-169,-87,-77,-71,-87,-83,-114,-85,-114,-58,-69,-42,-39,0,0,0,0,0,0,0,0,0,0,0,-2,0,0,0,0,0,0,0,0,0,0,0,0,0,0,142,0,0,0]} 1. e4 {[%emt 0:00:02]} e5 {[%emt 0:00:06]} 2. Nf3 {[%emt 0:00:06]} Nc6 {[%emt 0:00:04]} 3. Bb5 {[%emt 0:00:05][%cal Bf1b5,Bb5a4,Ba4b3][%mdl 32]} a6 {[%emt 0:00:06]} 4. Ba4 {[%emt 0:00:04]} Nf6 {[%emt 0:00:06]} 5. O-O {[%emt 0:00:06]} b5 {[%emt 0:00:05]} 6. Bb3 {[%emt 0:00:04]} Bc5 {[%emt 0:00:03]} 7. d3 {[%emt 0:02:30]} d6 {[%emt 0:00:45]} 8. Nc3 {[%emt 0:00:29]} h6 {[%emt 0:07:17]} 9. Nd5 {[%emt 0:00:22]} Na5 {[%emt 0:05:29]} 10. Be3 {[%emt 0:05:13]} Nxb3 {[%emt 0:04:41]} 11. Nxf6+ {[%emt 0:00:30]} Qxf6 {[%emt 0:00:43]} 12. axb3 {[%emt 0:00:06]} Bg4 {[%emt 0:00:34]} 13. Bxc5 {[%emt 0:01:28]} dxc5 {[%emt 0:00:02]} 14. h3 {[%emt 0:00:54]} h5 {[%emt 0:05:04][%cal Oa6a5]} 15. Qe2 {[%emt 0:02:27] [#]} (15. Re1 $5 Bxf3 16. Qxf3 $11) 15... Rh6 $1 {[%emt 0:04:58]} 16. Qe3 {[%emt 0:06:07]} (16. hxg4 hxg4) 16... Bxf3 {[%emt 0:01:31]} 17. Qxf3 {[%emt 0:00:01]} Qxf3 {[%emt 0:00:09]} 18. gxf3 $15 {[%emt 0:00:05][%mdl 4096] Endgame. KRR-KRR} Rf6 {[%emt 0:04:03]} 19. Ra5 {[%emt 0:05:09]} O-O-O {[%emt 0:05:06][%cal Od8d6]} 20. Rfa1 {[%emt 0:00:19] [#]} Rdd6 {[%emt 0:02:20][%cal Oc8b7]} ({Much worse is} 20... Rxf3 $6 21. Rxa6 (21. Kg2 Rf6 $17) 21... Rxh3 22. Kg2 $11) 21. Kg2 {[%emt 0:27:31][%cal Of3f4]} Kb7 {[%emt 0:03:40]} 22. Re1 {[%emt 0:03:15]} Rf4 {[%emt 0:10:49]} 23. Re3 {[%emt 0:00:12]} Rg6+ {[%emt 0:06:26]} 24. Kh2 {[%emt 0:01:14]} Rgf6 {[%emt 0:02:37]} 25. Kg2 {[%emt 0:00:11]} Kb6 {[%emt 0:03:58]} 26. Ra1 {[%emt 0:00:06]} a5 {[%emt 0:01:27]} 27. Rg1 {[%emt 0:03:30]} Rg6+ {[%emt 0:08:35]} 28. Kh2 {[%emt 0:00:49]} Rxg1 {[%emt 0:00:05]} 29. Kxg1 {[%emt 0:00:04] KR-KR} Rf6 {[%emt 0:01:46]} 30. Kg2 {[%emt 0:00:08]} Rc6 {[%emt 0:05:20]} 31. Kf1 {[%emt 0:04:35]} Rf6 {[%emt 0:01:39]} 32. Kg2 $1 {[%emt 0:00:30]} Rg6+ {[%emt 0:00:03]} 33. Kf1 {[%emt 0:00:18]} Rf6 {[%emt 0:00:12]} 34. Kg2 $1 {[%emt 0:00:19][%cal Of3f4]} Rc6 {[%emt 0:00:17]} 35. Kf1 $1 {[%emt 0:00:05]} a4 {[%emt 0:00:13]} 36. bxa4 {[%emt 0:00:57]} bxa4 {[%emt 0:00:02]} 37. Re1 {[%emt 0:00:24]} c4 {[%emt 0:03:02]} 38. dxc4 {[%emt 0:05:52]} Rxc4 {[%emt 0:00:07]} 39. c3 {[%emt 0:00:03]} a3 {[%emt 0:04:27]} 40. Rb1 {[%emt 0:00:24]} (40. bxa3 $17 {was necessary.} Rxc3 41. Ke2) 40... axb2 {[%emt 0:01:59]} (40... a2 $19 41. Ra1 Ra4) 41. Rxb2+ $17 {[%emt 0:00:04]} Ka5 {[%emt 0:01:04]} 42. Ra2+ {[%emt 0:01:20]} Kb5 {[%emt 0:00:55]} 43. Ra3 {[%emt 0:00:05]} Rc6 {[%emt 0:02:08]} 44. Ke2 {[%emt 0:00:05]} Kc4 {[%emt 0:00:07]} (44... g5 $17 45. Ra8 Kc4 (45... Rxc3 46. Rf8 $11)) 45. Ra5 $15 {[%emt 0:00:15]} Rc5 {[%emt 0:02:00]} ({But not} 45... Kxc3 46. Rxe5 g6 47. Rd5 $14) 46. Ra8 {[%emt 0:00:23]} Kxc3 {[%emt 0:01:57]} 47. Rf8 {[%emt 0:00:16]} f6 {[%emt 0:01:39] Threatens to win with ...Rb5.} 48. Rf7 {[%emt 0:00:10]} Rc4 {[%emt 0:01:45]} 49. Rxg7 {[%emt 0:00:05]} c5 {[%emt 0:00:23]} 50. Rc7 {[%emt 0:02:22]} Kd4 {[%emt 0:01:13]} 51. Rd7+ {[%emt 0:00:05]} Kc3 {[%emt 0:00:03] ...Rd4 would now be deadly.} 52. Rc7 {[%emt 0:00:04]} Kb3 {[%emt 0:00:26]} 53. Rc6 {[%emt 0:00:05]} Rc2+ {[%emt 0:00:26]} 54. Ke3 {[%emt 0:00:06]} Rc3+ {[%emt 0:00:23]} 55. Ke2 {[%emt 0:00:05]} Rc2+ {[%emt 0:00:03]} 56. Ke3 {[%emt 0:00:03]} c4 {[%emt 0:02:14] aiming for ...Rb2.} 57. Rb6+ {[%emt 0:00:05]} Kc3 {[%emt 0:00:18]} 58. Rxf6 {[%emt 0:00:06]} Rd2 {[%emt 0:01:01]} 59. Re6 {[%emt 0:00:35]} Rd1 {[%emt 0:00:47]} (59... Rd3+ $11 60. Ke2 Rd2+ 61. Ke1 Rd3) 60. Ke2 {[%emt 0:00:04]} (60. Rxe5 $16 {[%cal Of3f4] Black must now prevent f4!} Re1+ 61. Kf4) 60... Rd2+ $11 {[%emt 0:00:21]} 61. Ke3 {[%emt 0:00:05] Weighted Error Value: White=0.11 (very precise) /Black=0.16 (very precise) .  Mistake:       	White=2     	Black=3      Inaccurate:     	White=5     	Black=4      OK:         	White=21    	Black=16     Best:        	White=7     	Black=1      Strong:       	White=3     	---} 1/2-1/2